fUSD/lending_fUSD_20260605
["ID","MTS","AMOUNT","RATE_DAILY","PERIOD"]
[424169611,1780626643000,-193.56075391,0.00012183,2]
[424169596,1780626643000,-150.0,0.00012114,2]
[424169605,1780626643000,-150.0,0.00012155,2]
[424169607,1780626643000,-257.03168048,0.00012169,2]
[424169601,1780626643000,-150.0,0.00012139,2]
[424169600,1780626643000,-150.0,0.00012139,2]
[424169603,1780626643000,-150.0,0.00012147,2]
[424169599,1780626643000,-257.03168048,0.00012129,2]
[424169602,1780626643000,-257.03168048,0.00012142,2]
[424169598,1780626643000,-150.0,0.00012123,2]
[424169669,1780626644000,-257.03168048,0.00012434,2]
[424169677,1780626644000,-38788.43864891,0.00012442,2]
[424169673,1780626644000,-99305.1392,0.00012439,2]
[424169674,1780626644000,-75426.32212554,0.0001244,2]
[424169675,1780626644000,-1145.6912102,0.0001244,2]
[424169679,1780626644000,-257.03168048,0.00012447,2]
[424169667,1780626644000,-257.03168048,0.00012421,2]
[424169670,1780626644000,-150.0,0.00012436,2]
[424169672,1780626644000,-4000.0,0.00012439,2]
[424169678,1780626644000,-150.0,0.00012443,2]
[424169676,1780626644000,-287.0,0.0001244,2]
[424169668,1780626644000,-38788.43864891,0.00012425,2]
[424169671,1780626644000,-2500.0,0.00012439,2]
[424169684,1780626644000,-257.03168048,0.0001246,2]
[424169692,1780626644000,-38788.43864891,0.00012477,2]
[424169680,1780626644000,-75426.32212546,0.0001245,2]
[424169683,1780626644000,-38788.43864891,0.0001246,2]
[424169685,1780626644000,-150.0,0.00012467,2]
[424169690,1780626644000,-75426.32212546,0.00012469,2]
[424169687,1780626644000,-150.0,0.00012467,2]
[424169689,1780626644000,-150.0,0.00012467,2]
[424169686,1780626644000,-150.0,0.00012467,2]
[424169688,1780626644000,-150.0,0.00012467,2]
[424169681,1780626644000,-150.0,0.0001245,2]
[424169694,1780626644000,-150.0,0.00012484,2]
[424169703,1780626644000,-257.03168048,0.000125,2]
[424169693,1780626644000,-75426.32212546,0.00012479,2]
[424169661,1780626644000,-257.03168048,0.00012394,2]
[424169682,1780626644000,-75426.32212546,0.0001246,2]
[424169665,1780626644000,-38788.43864891,0.00012408,2]
[424169639,1780626644000,-150.0,0.00012303,2]
[424169663,1780626644000,-150.0,0.00012405,2]
[424169634,1780626644000,-150.0,0.0001228,2]
[424169640,1780626644000,-150.0,0.00012311,2]
[424169641,1780626644000,-257.03168048,0.00012315,2]
[424169635,1780626644000,-150.0,0.00012282,2]
[424169638,1780626644000,-257.03168048,0.00012301,2]
[424169637,1780626644000,-150.0,0.00012297,2]
[424169636,1780626644000,-257.03168048,0.00012288,2]
[424169695,1780626644000,-1145.69121019,0.00012484,2]
[424169643,1780626644000,-150.0,0.00012321,2]
[424169653,1780626644000,-257.03168048,0.00012368,2]
[424169654,1780626644000,-150.0,0.00012373,2]
[424169642,1780626644000,-150.0,0.00012316,2]
[424169644,1780626644000,-257.03168048,0.00012328,2]
[424169645,1780626644000,-4138.9096908,0.00012328,2]
[424169652,1780626644000,-13898.8566315,0.00012365,2]
[424169648,1780626644000,-150.0,0.00012342,2]
[424169647,1780626644000,-257.03168048,0.00012341,2]
[424169651,1780626644000,-257.03168048,0.00012354,2]
[424169650,1780626644000,-150.0,0.00012349,2]
[424169646,1780626644000,-35970.174155,0.00012328,2]
[424169649,1780626644000,-150.0,0.00012346,2]
[424169656,1780626644000,-257.03168048,0.00012381,2]
[424169666,1780626644000,-150.0,0.00012417,2]
[424169655,1780626644000,-38788.43864898,0.00012374,2]
[424169657,1780626644000,-150.0,0.00012383,2]
[424169659,1780626644000,-213.00670347,0.00012392,2]
[424169660,1780626644000,-150.0,0.00012394,2]
[424169664,1780626644000,-257.03168048,0.00012407,2]
[424169658,1780626644000,-38788.43864891,0.00012391,2]
[424169662,1780626644000,-150.0,0.00012394,2]
[424169697,1780626644000,-75426.32212546,0.00012489,2]
[424169691,1780626644000,-257.03168048,0.00012474,2]
[424169704,1780626644000,-75426.32212546,0.00012508,2]
[424169733,1780626644000,-257.03168048,0.0001258,2]
[424169734,1780626644000,-150.0,0.00012585,2]
[424169736,1780626644000,-150.0,0.00012592,2]
[424169735,1780626644000,-150.0,0.00012589,2]
[424169745,1780626644000,-151.0,0.00012625,2]
[424169744,1780626644000,-150.0,0.00012623,2]
[424169737,1780626644000,-257.03168048,0.00012593,2]
[424169738,1780626644000,-30045.7560435,0.00012603,2]
[424169739,1780626644000,-257.03168048,0.00012606,2]
[424169741,1780626644000,-250.0,0.00012614,2]
[424169743,1780626644000,-257.03168048,0.0001262,2]
[424169740,1780626644000,-150.0,0.00012613,2]
[424169742,1780626644000,-150.0,0.00012619,2]
[424169747,1780626644000,-151.0,0.00012625,2]
[424169757,1780626644000,-151.0,0.00012628,2]
[424169758,1780626644000,-151.0,0.00012628,2]
[424169750,1780626644000,-300.0,0.00012627,2]
[424169746,1780626644000,-151.0,0.00012625,2]
[424169756,1780626644000,-30597.3130489,0.00012628,2]
[424169751,1780626644000,-666.0,0.00012627,2]
[424169749,1780626644000,-681.07442116,0.00012627,2]
[424169748,1780626644000,-228.337412,0.00012627,2]
[424169759,1780626644000,-151.0,0.00012628,2]
[424169753,1780626644000,-666.0,0.00012627,2]
[424169755,1780626644000,-1354.7941438,0.00012628,2]
[424169754,1780626644000,-150.0,0.00012627,2]
[424169696,1780626644000,-257.03168048,0.00012487,2]
[424169762,1780626644000,-500.0,0.00012628,2]
[424169761,1780626644000,-154.330341,0.00012628,2]
[424169732,1780626644000,-257.03168048,0.00012567,2]
[424169728,1780626644000,-150.0,0.00012551,2]
[424169760,1780626644000,-151.0,0.00012628,2]
[424169726,1780626644000,-257.03168048,0.0001254,2]
[424169725,1780626644000,-150.0,0.0001254,2]
[424169706,1780626644000,-257.03168048,0.00012514,2]
[424169698,1780626644000,-150.0,0.00012491,2]
[424169699,1780626644000,-17602.0,0.00012493,2]
[424169700,1780626644000,-38788.43864891,0.00012494,2]
[424169701,1780626644000,-150.0,0.00012498,2]
[424169702,1780626644000,-75426.32212546,0.00012499,2]
[424169708,1780626644000,-287.0,0.00012518,2]
[424169709,1780626644000,-500.0,0.00012518,2]
[424169707,1780626644000,-150.0,0.00012518,2]
[424169710,1780626644000,-75426.32212546,0.00012518,2]
[424169718,1780626644000,-75426.32212546,0.00012528,2]
[424169719,1780626644000,-1145.69121019,0.00012528,2]
[424169715,1780626644000,-298.57993112,0.00012528,2]
[424169705,1780626644000,-38788.43864891,0.00012511,2]
[424169716,1780626644000,-279.25817883,0.00012528,2]
[424169727,1780626644000,-150.0,0.0001254,2]
[424169729,1780626644000,-257.03168048,0.00012553,2]
[424169724,1780626644000,-287.0,0.00012539,2]
[424169730,1780626644000,-150.0,0.00012561,2]
[424169717,1780626644000,-2214.35900638,0.00012528,2]
[424169720,1780626644000,-38788.43864891,0.00012528,2]
[424169731,1780626644000,-182.13614604,0.00012565,2]
[424169722,1780626644000,-150.0,0.0001253,2]
[424169721,1780626644000,-2132.28705444,0.00012529,2]
[424169714,1780626644000,-596.08239675,0.00012528,2]
[424169711,1780626644000,-257.03168048,0.00012527,2]
[424169712,1780626644000,-4947.1099,0.00012528,2]
[424169713,1780626644000,-163.61,0.00012528,2]
[424169723,1780626644000,-1765782.4765043,0.00012539,2]
[424169802,1780626645000,-500.0,0.00012628,2]
[424169805,1780626645000,-500.0,0.00012628,2]
[424169809,1780626645000,-500.0,0.00012628,2]
[424169801,1780626645000,-500.0,0.00012628,2]
[424169800,1780626645000,-500.0,0.00012628,2]
[424169794,1780626645000,-500.0,0.00012628,2]
[424169803,1780626645000,-500.0,0.00012628,2]
[424169799,1780626645000,-500.0,0.00012628,2]
[424169798,1780626645000,-500.0,0.00012628,2]
[424169796,1780626645000,-500.0,0.00012628,2]
[424169792,1780626645000,-500.0,0.00012628,2]
[424169804,1780626645000,-500.0,0.00012628,2]
[424169807,1780626645000,-500.0,0.00012628,2]
[424169825,1780626645000,-257.03168048,0.00012633,2]
[424169812,1780626645000,-500.0,0.00012628,2]
[424169810,1780626645000,-500.0,0.00012628,2]
[424169813,1780626645000,-500.0,0.00012628,2]
[424169816,1780626645000,-500.0,0.00012628,2]
[424169814,1780626645000,-500.0,0.00012628,2]
[424169822,1780626645000,-287.63651089,0.00012628,2]
[424169817,1780626645000,-500.0,0.00012628,2]
[424169820,1780626645000,-151.0,0.00012628,2]
[424169823,1780626645000,-150.0,0.00012631,2]
[424169818,1780626645000,-500.0,0.00012628,2]
[424169819,1780626645000,-311.562506,0.00012628,2]
[424169793,1780626645000,-500.0,0.00012628,2]
[424169821,1780626645000,-151.0,0.00012628,2]
[424169811,1780626645000,-500.0,0.00012628,2]
[424169795,1780626645000,-500.0,0.00012628,2]
[424169785,1780626645000,-500.0,0.00012628,2]
[424169790,1780626645000,-500.0,0.00012628,2]
[424169828,1780626645000,-257.03168048,0.00012646,2]
[424169763,1780626645000,-500.0,0.00012628,2]
[424169764,1780626645000,-500.0,0.00012628,2]
[424169765,1780626645000,-500.0,0.00012628,2]
[424169766,1780626645000,-500.0,0.00012628,2]
[424169770,1780626645000,-500.0,0.00012628,2]
[424169767,1780626645000,-500.0,0.00012628,2]
[424169768,1780626645000,-500.0,0.00012628,2]
[424169769,1780626645000,-500.0,0.00012628,2]
[424169771,1780626645000,-500.0,0.00012628,2]
[424169772,1780626645000,-500.0,0.00012628,2]
[424169773,1780626645000,-500.0,0.00012628,2]
[424169775,1780626645000,-500.0,0.00012628,2]
[424169774,1780626645000,-500.0,0.00012628,2]
[424169784,1780626645000,-500.0,0.00012628,2]
[424169779,1780626645000,-500.0,0.00012628,2]
[424169776,1780626645000,-500.0,0.00012628,2]
[424169780,1780626645000,-500.0,0.00012628,2]
[424169777,1780626645000,-500.0,0.00012628,2]
[424169781,1780626645000,-500.0,0.00012628,2]
[424169782,1780626645000,-500.0,0.00012628,2]
[424169783,1780626645000,-500.0,0.00012628,2]
[424169786,1780626645000,-500.0,0.00012628,2]
[424169787,1780626645000,-500.0,0.00012628,2]
[424169797,1780626645000,-500.0,0.00012628,2]
[424169788,1780626645000,-500.0,0.00012628,2]
[424169791,1780626645000,-500.0,0.00012628,2]
[424169789,1780626645000,-500.0,0.00012628,2]
[424169826,1780626645000,-150.0,0.00012637,2]
[424169885,1780626645000,-4999.99,0.00012893,2]
[424169840,1780626645000,-257.03168048,0.00012699,2]
[424169861,1780626645000,-150.0,0.00012795,2]
[424169863,1780626645000,-150.0,0.00012811,2]
[424169866,1780626645000,-257.03168048,0.00012832,2]
[424169870,1780626645000,-257.03168048,0.00012845,2]
[424169868,1780626645000,-150.0,0.00012832,2]
[424169869,1780626645000,-150.0,0.00012842,2]
[424169867,1780626645000,-150.0,0.00012832,2]
[424169877,1780626645000,-150.0,0.00012888,2]
[424169873,1780626645000,-257.03168048,0.00012871,2]
[424169875,1780626645000,-150.0,0.0001288,2]
[424169872,1780626645000,-257.03168048,0.00012858,2]
[424169874,1780626645000,-150.0,0.00012873,2]
[424169876,1780626645000,-257.03168048,0.00012885,2]
[424169879,1780626645000,-11175.16,0.00012893,2]
[424169878,1780626645000,-481.05,0.00012893,2]
[424169890,1780626645000,-1349.55,0.00012893,2]
[424169880,1780626645000,-9999.99,0.00012893,2]
[424169882,1780626645000,-1631.94,0.00012893,2]
[424169881,1780626645000,-2134.59,0.00012893,2]
[424169889,1780626645000,-2301.95,0.00012893,2]
[424169884,1780626645000,-499.99,0.00012893,2]
[424169883,1780626645000,-2775.38,0.00012893,2]
[424169888,1780626645000,-9999.99,0.00012893,2]
[424169887,1780626645000,-999.99,0.00012893,2]
[424169886,1780626645000,-150.99,0.00012893,2]
[424169830,1780626645000,-150.0,0.00012655,2]
[424169891,1780626645000,-9999.99,0.00012893,2]
[424169857,1780626645000,-150.0,0.00012787,2]
[424169856,1780626645000,-150.0,0.00012783,2]
[424169871,1780626645000,-150.0,0.00012854,2]
[424169853,1780626645000,-257.03168048,0.00012779,2]
[424169832,1780626645000,-257.03168048,0.00012673,2]
[424169864,1780626645000,-257.03168048,0.00012818,2]
[424169829,1780626645000,-150.0,0.00012652,2]
[424169835,1780626645000,-150.0,0.00012686,2]
[424169831,1780626645000,-257.03168048,0.00012659,2]
[424169833,1780626645000,-150.0,0.00012686,2]
[424169839,1780626645000,-150.0,0.00012686,2]
[424169838,1780626645000,-150.0,0.00012686,2]
[424169848,1780626645000,-150.0,0.00012748,2]
[424169842,1780626645000,-150.0,0.00012717,2]
[424169852,1780626645000,-257.03168048,0.00012765,2]
[424169849,1780626645000,-257.03168048,0.00012752,2]
[424169850,1780626645000,-150.0,0.00012753,2]
[424169851,1780626645000,-150.0,0.00012759,2]
[424169837,1780626645000,-257.03168048,0.00012686,2]
[424169860,1780626645000,-150.0,0.00012795,2]
[424169858,1780626645000,-257.03168048,0.00012792,2]
[424169841,1780626645000,-257.03168048,0.00012712,2]
[424169859,1780626645000,-500.0,0.00012792,2]
[424169862,1780626645000,-257.03168048,0.00012805,2]
[424169854,1780626645000,-160.0,0.0001278,2]
[424169865,1780626645000,-150.0,0.0001282,2]
[424169834,1780626645000,-150.0,0.00012686,2]
[424169846,1780626645000,-150.0,0.00012734,2]
[424169847,1780626645000,-257.03168048,0.00012739,2]
[424169845,1780626645000,-1000.0,0.00012731,2]
[424169843,1780626645000,-150.0,0.00012719,2]
[424169844,1780626645000,-257.03168048,0.00012726,2]
[424169855,1780626645000,-150.0,0.0001278,2]
[424169944,1780626646000,-257.03168048,0.0001311,2]
[424169946,1780626646000,-255.83575464,0.00013123,2]
[424169941,1780626646000,-150.0,0.00013092,2]
[424169929,1780626646000,-150.0,0.00013061,2]
[424169930,1780626646000,-500.0,0.00013066,2]
[424169939,1780626646000,-257.03168048,0.00013084,2]
[424169945,1780626646000,-236.15184554,0.00013123,2]
[424169920,1780626646000,-257.03168048,0.00013017,2]
[424169926,1780626646000,-150.0,0.0001305,2]
[424169931,1780626646000,-182.13614606,0.00013067,2]
[424169924,1780626646000,-257.03168048,0.0001303,2]
[424169940,1780626646000,-150.0,0.0001309,2]
[424169918,1780626646000,-150.0,0.00012998,2]
[424169958,1780626646000,-692.17,0.0001326,2]
[424169937,1780626646000,-150.0,0.00013075,2]
[424169935,1780626646000,-257.03168048,0.0001307,2]
[424169948,1780626646000,-242.9366496,0.00013123,2]
[424169947,1780626646000,-154.53400447,0.00013123,2]
[424169951,1780626646000,-257.03168048,0.00013123,2]
[424169949,1780626646000,-150.89231479,0.00013123,2]
[424169956,1780626646000,-35970.174155,0.00013215,2]
[424169950,1780626646000,-168.37532272,0.00013123,2]
[424169957,1780626646000,-16249.8566315,0.0001324,2]
[424169952,1780626646000,-166.63099763,0.00013123,2]
[424169953,1780626646000,-155.67737119,0.00013123,2]
[424169955,1780626646000,-4138.9096908,0.00013215,2]
[424169919,1780626646000,-257.03168048,0.00013004,2]
[424169933,1780626646000,-171.8,0.00013067,2]
[424169922,1780626646000,-150.0,0.00013026,2]
[424169895,1780626646000,-150.0,0.00012905,2]
[424169925,1780626646000,-257.03168048,0.00013044,2]
[424169954,1780626646000,-151.0,0.0001313,2]
[424169893,1780626646000,-257.03168048,0.00012898,2]
[424169894,1780626646000,-150.0,0.00012905,2]
[424169892,1780626646000,-53971.28,0.00012893,2]
[424169899,1780626646000,-150.0,0.00012929,2]
[424169898,1780626646000,-257.03168048,0.00012924,2]
[424169897,1780626646000,-150.0,0.00012921,2]
[424169901,1780626646000,-257.03168048,0.00012938,2]
[424169896,1780626646000,-257.03168048,0.00012911,2]
[424169903,1780626646000,-150.0,0.00012955,2]
[424169900,1780626646000,-150.0,0.00012936,2]
[424169902,1780626646000,-257.03168048,0.00012951,2]
[424169905,1780626646000,-257.03168048,0.00012964,2]
[424169915,1780626646000,-150.0,0.00012989,2]
[424169904,1780626646000,-150.0,0.00012959,2]
[424169906,1780626646000,-420.0,0.00012967,2]
[424169907,1780626646000,-150.0,0.00012967,2]
[424169908,1780626646000,-150.0,0.00012977,2]
[424169910,1780626646000,-150.0,0.00012977,2]
[424169912,1780626646000,-878.09,0.00012987,2]
[424169909,1780626646000,-257.03168048,0.00012977,2]
[424169913,1780626646000,-708.19,0.00012987,2]
[424169911,1780626646000,-255.0,0.00012984,2]
[424169914,1780626646000,-195.41,0.00012987,2]
[424169917,1780626646000,-1680.0,0.00012991,2]
[424169928,1780626646000,-257.03168048,0.00013057,2]
[424169927,1780626646000,-150.0,0.00013056,2]
[424169916,1780626646000,-257.03168048,0.00012991,2]
[424169921,1780626646000,-150.0,0.00013022,2]
[424169923,1780626646000,-150.0,0.0001303,2]
[424169960,1780626646000,-885.13,0.0001332,2]
[424169943,1780626646000,-257.03168048,0.00013097,2]
[424169970,1780626646000,-500.0,0.00013614,2]
[424169992,1780626646000,-500.0,0.00013698,2]
[424169988,1780626646000,-500.0,0.00013698,2]
[424169990,1780626646000,-500.0,0.00013698,2]
[424169999,1780626646000,-500.0,0.00013698,2]
[424170010,1780626646000,-500.0,0.00013698,2]
[424170009,1780626646000,-500.0,0.00013698,2]
[424170002,1780626646000,-500.0,0.00013698,2]
[424170000,1780626646000,-500.0,0.00013698,2]
[424170004,1780626646000,-500.0,0.00013698,2]
[424170008,1780626646000,-500.0,0.00013698,2]
[424170005,1780626646000,-500.0,0.00013698,2]
[424170001,1780626646000,-500.0,0.00013698,2]
[424170003,1780626646000,-500.0,0.00013698,2]
[424169998,1780626646000,-233.73997186,0.00013698,2]
[424170006,1780626646000,-500.0,0.00013698,2]
[424170007,1780626646000,-500.0,0.00013698,2]
[424170011,1780626646000,-500.0,0.00013698,2]
[424170017,1780626646000,-500.0,0.00013698,2]
[424170015,1780626646000,-500.0,0.00013698,2]
[424170012,1780626646000,-500.0,0.00013698,2]
[424170016,1780626646000,-500.0,0.00013698,2]
[424170020,1780626646000,-500.0,0.00013698,2]
[424170014,1780626646000,-500.0,0.00013698,2]
[424170018,1780626646000,-500.0,0.00013698,2]
[424170021,1780626646000,-500.0,0.00013698,2]
[424170022,1780626646000,-500.0,0.00013698,2]
[424170013,1780626646000,-500.0,0.00013698,2]
[424170019,1780626646000,-500.0,0.00013698,2]
[424170023,1780626646000,-500.0,0.00013698,2]
[424169997,1780626646000,-500.0,0.00013698,2]
[424169996,1780626646000,-500.0,0.00013698,2]
[424169961,1780626646000,-500.0,0.0001334,2]
[424169993,1780626646000,-500.0,0.00013698,2]
[424169969,1780626646000,-161.47684765,0.00013598,2]
[424169971,1780626646000,-2000.0,0.00013621,2]
[424169962,1780626646000,-502.83432011,0.00013368,2]
[424169968,1780626646000,-500.0,0.00013592,2]
[424169959,1780626646000,-408.54,0.0001326,2]
[424169964,1780626646000,-500.0,0.00013592,2]
[424169965,1780626646000,-500.0,0.00013592,2]
[424169967,1780626646000,-500.0,0.00013592,2]
[424169994,1780626646000,-500.0,0.00013698,2]
[424169963,1780626646000,-500.0,0.00013592,2]
[424169972,1780626646000,-500.0,0.00013698,2]
[424169974,1780626646000,-503.07634279,0.00013698,2]
[424169973,1780626646000,-500.0,0.00013698,2]
[424169981,1780626646000,-500.0,0.00013698,2]
[424169966,1780626646000,-500.0,0.00013592,2]
[424169979,1780626646000,-500.0,0.00013698,2]
[424169975,1780626646000,-550.35864884,0.00013698,2]
[424169991,1780626646000,-484.57940694,0.00013698,2]
[424169995,1780626646000,-500.0,0.00013698,2]
[424169986,1780626646000,-500.0,0.00013698,2]
[424169987,1780626646000,-500.0,0.00013698,2]
[424169985,1780626646000,-500.0,0.00013698,2]
[424169989,1780626646000,-500.0,0.00013698,2]
[424169983,1780626646000,-500.0,0.00013698,2]
[424169982,1780626646000,-500.0,0.00013698,2]
[424169977,1780626646000,-500.0,0.00013698,2]
[424169980,1780626646000,-500.0,0.00013698,2]
[424169976,1780626646000,-500.0,0.00013698,2]
[424169984,1780626646000,-500.0,0.00013698,2]
[424169978,1780626646000,-500.0,0.00013698,2]
[424170065,1780626647000,-598.46,0.00013698,2]
[424170063,1780626647000,-598.46,0.00013698,2]
[424170067,1780626647000,-598.46,0.00013698,2]
[424170074,1780626647000,-598.46,0.00013698,2]
[424170073,1780626647000,-598.46,0.00013698,2]
[424170061,1780626647000,-598.46,0.00013698,2]
[424170060,1780626647000,-598.46,0.00013698,2]
[424170057,1780626647000,-500.79764028,0.00013698,2]
[424170059,1780626647000,-598.46,0.00013698,2]
[424170058,1780626647000,-598.46,0.00013698,2]
[424170056,1780626647000,-302.54623213,0.00013698,2]
[424170064,1780626647000,-598.46,0.00013698,2]
[424170068,1780626647000,-598.46,0.00013698,2]
[424170085,1780626647000,-599.97,0.00013698,2]
[424170075,1780626647000,-598.46,0.00013698,2]
[424170069,1780626647000,-598.46,0.00013698,2]
[424170070,1780626647000,-598.46,0.00013698,2]
[424170072,1780626647000,-598.46,0.00013698,2]
[424170071,1780626647000,-598.46,0.00013698,2]
[424170077,1780626647000,-500.0,0.00013698,2]
[424170087,1780626647000,-599.97,0.00013698,2]
[424170080,1780626647000,-500.0,0.00013698,2]
[424170088,1780626647000,-500.0,0.00013698,2]
[424170078,1780626647000,-500.0,0.00013698,2]
[424170076,1780626647000,-500.0,0.00013698,2]
[424170082,1780626647000,-500.0,0.00013698,2]
[424170084,1780626647000,-500.0,0.00013698,2]
[424170054,1780626647000,-633.38,0.00013698,2]
[424170066,1780626647000,-598.46,0.00013698,2]
[424170055,1780626647000,-500.0,0.00013698,2]
[424170046,1780626647000,-633.38,0.00013698,2]
[424170051,1780626647000,-633.38,0.00013698,2]
[424170081,1780626647000,-500.0,0.00013698,2]
[424170035,1780626647000,-500.0,0.00013698,2]
[424170025,1780626647000,-500.0,0.00013698,2]
[424170026,1780626647000,-500.0,0.00013698,2]
[424170027,1780626647000,-500.0,0.00013698,2]
[424170036,1780626647000,-155.65590252,0.00013698,2]
[424170028,1780626647000,-500.0,0.00013698,2]
[424170024,1780626647000,-500.0,0.00013698,2]
[424170029,1780626647000,-500.0,0.00013698,2]
[424170031,1780626647000,-500.0,0.00013698,2]
[424170033,1780626647000,-500.0,0.00013698,2]
[424170034,1780626647000,-500.0,0.00013698,2]
[424170030,1780626647000,-500.0,0.00013698,2]
[424170032,1780626647000,-500.0,0.00013698,2]
[424170038,1780626647000,-633.38,0.00013698,2]
[424170037,1780626647000,-633.38,0.00013698,2]
[424170043,1780626647000,-633.38,0.00013698,2]
[424170041,1780626647000,-633.38,0.00013698,2]
[424170040,1780626647000,-633.38,0.00013698,2]
[424170039,1780626647000,-633.38,0.00013698,2]
[424170042,1780626647000,-633.38,0.00013698,2]
[424170047,1780626647000,-633.38,0.00013698,2]
[424170045,1780626647000,-633.38,0.00013698,2]
[424170050,1780626647000,-633.38,0.00013698,2]
[424170044,1780626647000,-633.38,0.00013698,2]
[424170048,1780626647000,-633.38,0.00013698,2]
[424170049,1780626647000,-633.38,0.00013698,2]
[424170062,1780626647000,-598.46,0.00013698,2]
[424170052,1780626647000,-633.38,0.00013698,2]
[424170053,1780626647000,-633.38,0.00013698,2]
[424170083,1780626647000,-503.27720088,0.00013698,2]
[424170079,1780626647000,-500.0,0.00013698,2]
[424170090,1780626647000,-500.0,0.00013698,2]
[424170123,1780626647000,-500.0,0.00013698,2]
[424170122,1780626647000,-953.26,0.00013698,2]
[424170119,1780626647000,-500.0,0.00013698,2]
[424170120,1780626647000,-953.26,0.00013698,2]
[424170126,1780626647000,-953.26,0.00013698,2]
[424170129,1780626647000,-500.0,0.00013698,2]
[424170138,1780626647000,-953.26,0.00013698,2]
[424170137,1780626647000,-953.26,0.00013698,2]
[424170139,1780626647000,-953.26,0.00013698,2]
[424170140,1780626647000,-953.26,0.00013698,2]
[424170130,1780626647000,-953.26,0.00013698,2]
[424170128,1780626647000,-953.26,0.00013698,2]
[424170135,1780626647000,-152.01996913,0.00013698,2]
[424170131,1780626647000,-500.0,0.00013698,2]
[424170118,1780626647000,-953.26,0.00013698,2]
[424170136,1780626647000,-953.26,0.00013698,2]
[424170132,1780626647000,-953.26,0.00013698,2]
[424170141,1780626647000,-953.26,0.00013698,2]
[424170143,1780626647000,-500.0,0.00013698,2]
[424170144,1780626647000,-500.0,0.00013698,2]
[424170147,1780626647000,-500.0,0.00013698,2]
[424170148,1780626647000,-500.0,0.00013698,2]
[424170151,1780626647000,-500.0,0.00013698,2]
[424170142,1780626647000,-500.0,0.00013698,2]
[424170146,1780626647000,-500.0,0.00013698,2]
[424170145,1780626647000,-500.0,0.00013698,2]
[424170149,1780626647000,-500.0,0.00013698,2]
[424170150,1780626647000,-500.0,0.00013698,2]
[424170086,1780626647000,-500.0,0.00013698,2]
[424170152,1780626647000,-500.0,0.00013698,2]
[424170134,1780626647000,-953.26,0.00013698,2]
[424170121,1780626647000,-500.0,0.00013698,2]
[424170133,1780626647000,-500.0,0.00013698,2]
[424170124,1780626647000,-953.26,0.00013698,2]
[424170125,1780626647000,-500.0,0.00013698,2]
[424170091,1780626647000,-599.97,0.00013698,2]
[424170100,1780626647000,-599.97,0.00013698,2]
[424170101,1780626647000,-500.0,0.00013698,2]
[424170092,1780626647000,-500.0,0.00013698,2]
[424170094,1780626647000,-500.0,0.00013698,2]
[424170096,1780626647000,-500.0,0.00013698,2]
[424170098,1780626647000,-599.97,0.00013698,2]
[424170093,1780626647000,-599.97,0.00013698,2]
[424170097,1780626647000,-599.97,0.00013698,2]
[424170099,1780626647000,-500.0,0.00013698,2]
[424170095,1780626647000,-599.97,0.00013698,2]
[424170109,1780626647000,-599.97,0.00013698,2]
[424170102,1780626647000,-599.97,0.00013698,2]